lending/lending_fUSD_20250418
["ID","MTS","AMOUNT","RATE_DAILY","PERIOD"]
[358329638,1744938637785,-599.0,0.00062823,20]
[358329639,1744938637795,-245.58379883,0.00063144,120]
[358329640,1744938637804,-150.0,0.00063418,30]
[358329641,1744938637813,-349.81,0.00063418,30]
[358329642,1744938637822,-150.0,0.00064491,120]
[358329643,1744938637831,-151.0,0.00064658,120]
[358329644,1744938637841,-500.0,0.00067875,120]
[358329645,1744938637851,-433.0,0.000681,120]
[358329646,1744938637860,-800.0,0.00071272,120]
[358329647,1744938637870,-151.0,0.00077315,120]
[358329648,1744938637879,-453.27,0.00079381,120]
[358329649,1744938637889,-800.0,0.00080738,120]
[358329650,1744938637898,-1712.54832801,0.0008077,120]
[358329651,1744938637907,-1000.0,0.0008087,120]
[358329652,1744938637918,-150.0,0.000809,2]
[358329653,1744938637927,-1000.0,0.0008097,120]
[358329654,1744938637937,-700.0,0.00084058,120]
[358329655,1744938637947,-302.0,0.00089973,120]
[358329656,1744938637957,-700.0,0.00096394,120]
[358329657,1744938637966,-500.0,0.00097028,120]
[358329658,1744938637978,-150.0,0.00097028,20]
[358329659,1744938637987,-500.0,0.00097089,120]
[358329660,1744938637997,-500.0,0.00097872,120]
[358329661,1744938638006,-151.0,0.001,120]
[358329662,1744938638016,-800.0,0.00100917,120]
[358329663,1744938638025,-151.0,0.00102097,101]
[358329664,1744938638035,-1132.24,0.00103873,2]
[358329665,1744938638044,-150.0,0.001044,2]
[358329666,1744938638053,-1132.24,0.00106137,2]
[358329667,1744938638063,-200.0,0.00107684,30]
[358329668,1744938638075,-212.54,0.00107684,30]
[358329669,1744938638084,-2731.56,0.00107684,30]
[358329670,1744938638093,-1000.0,0.0010807,120]
[358329671,1744938638103,-1132.24,0.00108401,2]
[358329672,1744938638113,-225.03,0.001096,7]
[358329673,1744938638123,-1132.24,0.00110665,2]
[358329674,1744938638133,-1132.24,0.00112929,2]
[358329675,1744938638142,-461.93,0.00114337,120]
[358329676,1744938638153,-200.0,0.00115027,2]
[358329677,1744938638165,-150.0,0.00115145,30]
[358329678,1744938638174,-1132.24,0.00115193,2]
[358329679,1744938638184,-1305.76,0.00115697,2]
[358329680,1744938638194,-1132.24,0.00117457,2]
[358329681,1744938638203,-587.4,0.00117465,120]
[358329682,1744938638213,-250.0,0.00117512,120]
[358329683,1744938638223,-162.04,0.00117623,30]
[358329684,1744938638232,-168.52,0.00118209,2]
[358329685,1744938638241,-187.53,0.001194,14]
[358329686,1744938638251,-1132.24,0.00119721,2]
[358329687,1744938638260,-1132.24,0.00121985,2]
[358329688,1744938638270,-587.4,0.00122356,120]
[358329689,1744938638280,-1132.24,0.00124248,2]
[358329690,1744938638289,-161.041809,0.0012498,120]
[358329691,1744938638298,-692.98247862,0.00125802,120]
[358329692,1744938638307,-1132.24,0.00126512,2]
[358329693,1744938638317,-587.4,0.00127246,120]
[358329694,1744938638326,-500.0,0.00128028,120]
[358329695,1744938638336,-1132.24,0.00128776,2]
[358329696,1744938638345,-1132.24,0.0013104,2]
[358329697,1744938638354,-587.4,0.00132137,120]
[358329698,1744938638363,-500.0,0.00133303,120]
[358329699,1744938638372,-1132.24,0.00133304,2]
[358329700,1744938638382,-500.0,0.00134515,120]
[358329701,1744938638391,-1132.24,0.00135568,2]
[358329702,1744938638401,-150.0,0.00136686,120]
[358329703,1744938638411,-150.0,0.00136686,120]
[358329704,1744938638420,-150.0,0.00136686,120]
[358329705,1744938638429,-150.0,0.00136686,120]
[358329706,1744938638439,-150.0,0.00136686,120]
[358329707,1744938638448,-150.0,0.00136686,120]
[358329708,1744938638457,-150.0,0.00136686,120]
[358329709,1744938638466,-150.0,0.00136686,120]
[358329710,1744938638475,-208.17431081,0.00136686,120]
[358329711,1744938638485,-150.0,0.00136686,120]
[358329712,1744938638494,-175.0,0.00136686,120]
[358329713,1744938638503,-587.4,0.00137027,120]
[358329714,1744938638512,-150.0,0.0013732,120]
[358329715,1744938638522,-500.0,0.00137644,120]
[358329716,1744938638531,-1132.24,0.00137832,2]
[358329717,1744938638541,-500.0,0.0013815,120]
[358329718,1744938638550,-500.0,0.00138283,2]
[358329719,1744938638559,-483.70950215,0.00138283,30]
[358329720,1744938638569,-500.0,0.00138283,15]
[358329721,1744938638578,-170.28,0.00138859,120]
[358329722,1744938638587,-6420.18042538,0.00139525,15]
[358329723,1744938638596,-500.0,0.00139525,120]
[358329724,1744938638606,-208.81087351,0.00139525,7]
[358329725,1744938638615,-408.55768406,0.00139525,120]
[358329726,1744938638624,-500.0,0.00139525,120]
[358329727,1744938638634,-500.0,0.00139525,120]
[358329728,1744938638643,-500.0,0.00139525,120]
[358329729,1744938638652,-500.0,0.00139525,120]
[358329730,1744938638661,-500.0,0.00139526,120]
[358329731,1744938638670,-28690.6784,0.00139526,120]
[358329732,1744938638680,-1000.0,0.00139526,120]
[358329733,1744938638690,-9316.0,0.00139589,120]
[358329734,1744938638700,-7568.9838681,0.00139616,29]
[358329735,1744938638710,-340.16,0.00139616,30]
[358329736,1744938638723,-500.0,0.00139625,2]
[358329737,1744938638733,-500.0,0.00139625,120]
[358329738,1744938638743,-242.01354838,0.00139625,120]
[358329739,1744938638752,-500.0,0.00139625,120]
[358329740,1744938638762,-595.45617719,0.00139625,120]
[358329741,1744938638771,-448.71830175,0.00139625,120]
[358329742,1744938638780,-500.0,0.00139625,120]
[358329743,1744938638789,-500.0,0.00139625,120]
[358329744,1744938638798,-500.0,0.00139625,120]
[358329745,1744938638808,-500.0,0.00139625,120]
[358329746,1744938638817,-500.0,0.00139625,120]
[358329747,1744938638827,-500.0,0.00139625,120]
[358329748,1744938638836,-500.0,0.00139625,120]
[358329749,1744938638846,-500.0,0.00139625,120]
[358329750,1744938638855,-500.0,0.00139625,120]
[358329751,1744938638865,-500.0,0.00139625,120]
[358329752,1744938638875,-500.0,0.00139625,120]
[358329753,1744938638884,-508.58376208,0.00139625,120]
[358329754,1744938638895,-500.0,0.00139625,120]
[358329755,1744938638905,-500.0,0.00139625,120]
[358329756,1744938638915,-500.0,0.00139625,120]
[358329757,1744938638925,-500.0,0.00139625,120]
[358329758,1744938638935,-500.0,0.00139625,120]
[358329759,1744938638944,-500.0,0.00139625,120]
[358329760,1744938638955,-557.32555147,0.00139625,120]
[358329761,1744938638965,-500.0,0.00139625,120]
[358329762,1744938638975,-500.0,0.00139625,30]
[358329763,1744938638985,-500.0,0.00139625,120]
[358329764,1744938638995,-500.0,0.00139625,120]
[358329765,1744938639005,-500.0,0.00139625,120]
[358329766,1744938639015,-500.0,0.00139625,120]
[358329767,1744938639025,-500.0,0.00139625,120]
[358329768,1744938639035,-500.0,0.00139625,120]
[358329769,1744938639044,-524.86,0.00139625,120]
[358329770,1744938639054,-500.0,0.00139625,120]
[358329771,1744938639064,-500.0,0.00139625,120]
[358329772,1744938639076,-500.0,0.00139625,120]
[358329773,1744938639086,-412.9202355,0.00139625,120]
[358329774,1744938639096,-500.0,0.00139625,120]
[358329775,1744938639105,-514.88606813,0.00139625,120]
[358329776,1744938639117,-500.0,0.00139625,120]
[358329777,1744938639127,-500.0,0.00139625,120]
[358329778,1744938639138,-500.0,0.00139625,120]
[358329779,1744938639149,-500.0,0.00139625,120]
[358329780,1744938639159,-500.0,0.00139625,120]
[358329781,1744938639168,-500.0,0.00139625,120]
[358329782,1744938639178,-500.0,0.00139625,120]
[358329783,1744938639187,-500.0,0.00139625,120]
[358329784,1744938639197,-500.0,0.00139625,120]
[358329785,1744938639208,-500.0,0.00139625,120]
[358329786,1744938639218,-500.0,0.00139625,120]
[358329787,1744938639228,-500.0,0.00139625,120]
[358329788,1744938639238,-500.0,0.00139625,120]
[358329789,1744938639248,-500.0,0.00139625,120]
[358329790,1744938639257,-500.0,0.00139625,120]
[358329791,1744938639267,-500.0,0.00139625,120]
[358329792,1744938639277,-500.0,0.00139625,120]
[358329793,1744938639287,-500.0,0.00139625,120]
[358329794,1744938639296,-500.0,0.00139625,120]
[358329795,1744938639306,-500.0,0.00139625,120]
[358329796,1744938639315,-520.7221246,0.00139625,120]
[358329797,1744938639325,-500.0,0.00139625,120]
[358329798,1744938639335,-500.0,0.00139625,120]
[358329799,1744938639344,-500.0,0.00139625,120]
[358329800,1744938639354,-500.0,0.00139625,120]
[358329801,1744938639363,-531.77337865,0.00139625,120]
[358329802,1744938639373,-500.0,0.00139625,120]
[358329803,1744938639383,-500.0,0.00139625,120]
[358329804,1744938639392,-500.0,0.00139625,120]
[358329805,1744938639402,-500.0,0.00139625,120]
[358329806,1744938639412,-500.0,0.00139625,120]
[358329807,1744938639421,-500.0,0.00139625,120]
[358329808,1744938639430,-500.0,0.00139625,120]
[358329809,1744938639440,-500.0,0.00139625,120]
[358329810,1744938639449,-500.0,0.00139625,120]
[358329811,1744938639458,-500.0,0.00139625,120]
[358329812,1744938639468,-500.0,0.00139625,120]
[358329813,1744938639477,-500.0,0.00139625,120]
[358329814,1744938639487,-500.0,0.00139625,120]
[358329815,1744938639496,-500.0,0.00139625,120]
[358329816,1744938639506,-500.0,0.00139625,120]
[358329817,1744938639515,-500.0,0.00139625,120]
[358329818,1744938639524,-500.0,0.00139625,120]
[358329819,1744938639534,-571.28684069,0.00139625,120]
[358329820,1744938639543,-500.0,0.00139625,120]
[358329821,1744938639552,-500.0,0.00139625,2]
[358329822,1744938639562,-500.0,0.00139625,120]
[358329823,1744938639572,-500.0,0.00139625,120]
[358329824,1744938639581,-400.51392281,0.00139625,120]
[358329825,1744938639591,-262.06,0.00139625,120]
[358329826,1744938639602,-500.0,0.00139625,120]
[358329827,1744938639622,-500.0,0.00139625,120]
[358329828,1744938639632,-500.0,0.00139625,120]
[358329829,1744938639642,-500.0,0.00139625,120]
[358329830,1744938639652,-180.539085,0.00139625,120]
[358329831,1744938639661,-500.0,0.00139625,2]
[358329832,1744938639671,-500.0,0.00139625,120]
[358329833,1744938639680,-1769.545818,0.00139625,120]
[358329834,1744938639690,-358.3681337,0.00139625,120]
[358329835,1744938639700,-500.0,0.00139625,120]
[358329836,1744938639710,-646.59652616,0.00139625,120]
[358329837,1744938639720,-500.0,0.00139625,120]
[358329838,1744938639730,-500.0,0.00139625,120]
[358329839,1744938639739,-245.78551457,0.00139625,120]
[358329840,1744938639750,-500.0,0.00139625,120]
[358329841,1744938639759,-500.0,0.00139625,120]
[358329842,1744938639768,-279.685361,0.00139625,120]
[358329843,1744938639778,-520.88799238,0.00139625,120]
[358329844,1744938639787,-500.0,0.00139625,120]
[358329845,1744938639797,-500.0,0.00139625,120]
[358329846,1744938639807,-500.0,0.00139625,118]
[358329847,1744938639817,-500.0,0.00139625,120]
[358329848,1744938639826,-500.0,0.00139625,120]
[358329849,1744938639836,-513.07662886,0.00139625,120]
[358329850,1744938639846,-500.0,0.00139625,120]
[358329851,1744938639856,-339.52,0.00139625,120]
[358329852,1744938639866,-500.0,0.00139625,120]
[358329853,1744938639876,-500.0,0.00139625,120]
[358329854,1744938639885,-450.13043135,0.00139625,120]
[358329855,1744938639895,-500.0,0.00139625,120]
[358329856,1744938639905,-500.0,0.00139625,120]
[358329857,1744938639914,-500.0,0.00139625,120]
[358329858,1744938639923,-500.0,0.00139625,120]
[358329859,1744938639933,-500.0,0.00139625,120]
[358329860,1744938639942,-534.44963745,0.00139625,120]
[358329861,1744938639952,-506.53932967,0.00139625,120]
[358329862,1744938639961,-524.36265768,0.00139625,120]
[358329863,1744938639970,-500.0,0.00139625,120]
[358329864,1744938639980,-4751.74,0.00139625,7]
[358329865,1744938639990,-500.0,0.00139625,120]
[358329866,1744938640001,-500.0,0.00139625,120]
[358329867,1744938640011,-1000.0,0.00139625,35]
[358329868,1744938640020,-500.0,0.00139625,120]
[358329869,1744938640030,-500.0,0.00139625,120]
[358329870,1744938640040,-500.0,0.00139625,120]
[358329871,1744938640050,-500.0,0.00139625,120]
[358329872,1744938640060,-246.21208624,0.00139625,59]
[358329873,1744938640073,-500.0,0.00139625,120]
[358329874,1744938640082,-500.0,0.00139625,120]
[358329875,1744938640091,-500.0,0.00139625,120]
[358329876,1744938640101,-500.0,0.00139625,120]
[358329877,1744938640111,-500.0,0.00139625,120]
[358329878,1744938640121,-500.0,0.00139625,120]
[358329879,1744938640131,-500.0,0.00139625,120]
[358329880,1744938640141,-360.23788505,0.00139625,120]
[358329881,1744938640150,-500.0,0.00139625,120]
[358329882,1744938640161,-500.0,0.00139625,120]
[358329883,1744938640170,-500.0,0.00139625,120]
[358329884,1744938640180,-500.0,0.00139625,120]
[358329885,1744938640190,-532.11,0.00139625,120]
[358329886,1744938640200,-500.0,0.00139625,120]
[358329887,1744938640210,-500.0,0.00139625,120]
[358329888,1744938640220,-500.0,0.00139625,120]
[358329889,1744938640230,-500.0,0.00139625,120]
[358329890,1744938640240,-500.0,0.00139625,120]
[358329891,1744938640251,-500.0,0.00139625,120]
[358329892,1744938640260,-500.0,0.00139625,120]
[358329893,1744938640269,-500.0,0.00139625,120]
[358329894,1744938640279,-500.0,0.00139625,120]
[358329895,1744938640288,-500.0,0.00139625,120]
[358329896,1744938640297,-500.0,0.00139625,120]
[358329897,1744938640307,-500.0,0.00139625,120]
[358329898,1744938640317,-500.0,0.00139625,120]
[358329899,1744938640326,-425.04116469,0.00139625,120]
[358329900,1744938640335,-500.0,0.00139625,120]
[358329901,1744938640345,-500.0,0.00139625,120]
[358329902,1744938640354,-500.0,0.00139625,120]
[358329903,1744938640364,-500.0,0.00139625,120]
[358329904,1744938640373,-500.0,0.00139625,120]
[358329905,1744938640383,-544.43789476,0.00139625,120]
[358329906,1744938640392,-333.71398387,0.00139625,120]
[358329907,1744938640401,-500.0,0.00139625,120]
[358329908,1744938640410,-361.86786413,0.00139625,120]
[358329909,1744938640419,-500.0,0.00139625,120]
[358329910,1744938640428,-500.0,0.00139625,120]
[358329911,1744938640438,-500.0,0.00139625,120]
[358329912,1744938640447,-500.0,0.00139625,120]
[358329913,1744938640458,-500.0,0.00139625,120]
[358329914,1744938640467,-500.0,0.00139625,120]
[358329915,1744938640477,-500.0,0.00139625,120]
[358329916,1744938640486,-500.0,0.00139625,120]
[358329917,1744938640495,-500.0,0.00139625,120]
[358329918,1744938640504,-389.33568149,0.00139625,120]
[358329919,1744938640514,-500.0,0.00139625,120]
[358329920,1744938640523,-500.0,0.00139625,120]
[358329921,1744938640533,-500.0,0.00139625,120]
[358329922,1744938640543,-500.0,0.00139625,120]
[358329923,1744938640552,-500.0,0.00139625,120]
[358329924,1744938640562,-500.0,0.00139625,120]
[358329925,1744938640570,-500.0,0.00139625,120]
[358329926,1744938640578,-500.0,0.00139625,120]
[358329927,1744938640586,-500.0,0.00139625,120]
[358329928,1744938640595,-500.0,0.00139625,120]
[358329929,1744938640760,-500.0,0.00139625,2]
[358329930,1744938640770,-500.0,0.00139625,120]
[358329931,1744938640779,-500.0,0.00139625,120]
[358329932,1744938640788,-500.0,0.00139625,120]
[358329933,1744938640798,-500.0,0.00139625,120]
[358329934,1744938640807,-500.0,0.00139625,120]
[358329935,1744938640816,-500.0,0.00139625,120]
[358329936,1744938640825,-500.0,0.00139625,120]
[358329937,1744938640835,-500.0,0.00139625,30]
[358329938,1744938640844,-500.0,0.00139625,120]
[358329939,1744938640854,-500.0,0.00139625,120]
[358329940,1744938640863,-500.0,0.00139625,5]
[358329941,1744938640873,-394.33,0.00139625,120]
[358329942,1744938640883,-500.0,0.00139625,120]
[358329943,1744938640892,-500.0,0.00139625,120]
[358329944,1744938640902,-500.0,0.00139625,8]
[358329945,1744938640911,-500.0,0.00139625,120]
[358329946,1744938640921,-500.0,0.00139625,120]
[358329947,1744938640930,-390.0,0.00139625,120]
[358329948,1744938640940,-500.0,0.00139625,120]
[358329949,1744938640949,-500.0,0.00139625,120]
[358329950,1744938640958,-500.0,0.00139625,120]
[358329951,1744938640968,-500.0,0.00139625,120]
[358329952,1744938640978,-500.0,0.00139625,120]
[358329953,1744938640987,-500.0,0.00139625,120]
[358329954,1744938640997,-500.0,0.00139625,120]
[358329955,1744938641007,-500.0,0.00139625,120]
[358329956,1744938641016,-500.0,0.00139625,120]
[358329957,1744938641025,-516.85,0.00139625,120]
[358329958,1744938641035,-500.0,0.00139625,120]
[358329959,1744938641045,-500.0,0.00139625,120]
[358329960,1744938641054,-500.0,0.00139625,120]
[358329961,1744938641064,-500.0,0.00139625,120]
[358329962,1744938641077,-500.0,0.00139625,120]
[358329963,1744938641087,-500.0,0.00139625,120]
[358329964,1744938641096,-500.0,0.00139625,120]
[358329965,1744938641105,-500.0,0.00139625,120]
[358329966,1744938641117,-500.0,0.00139625,120]
[358329967,1744938641126,-500.0,0.00139625,120]
[358329968,1744938641135,-198.4,0.00139625,120]
[358329969,1744938641146,-503.36742057,0.00139625,120]
[358329970,1744938641156,-500.0,0.00139625,120]
[358329971,1744938641165,-500.0,0.00139625,120]
[358329972,1744938641175,-500.0,0.00139625,2]
[358329973,1744938641185,-183.76799752,0.00139625,120]
[358329974,1744938641194,-500.0,0.00139625,120]
[358329975,1744938641204,-500.0,0.00139625,120]
[358329976,1744938641214,-500.0,0.00139625,120]
[358329977,1744938641223,-551.52,0.00139625,120]
[358329978,1744938641233,-500.0,0.00139625,120]
[358329979,1744938641243,-500.0,0.00139625,120]
[358329980,1744938641253,-500.0,0.00139625,2]
[358329981,1744938641262,-500.0,0.00139625,120]
[358329982,1744938641272,-500.0,0.00139625,2]
[358329983,1744938641282,-500.0,0.00139625,120]
[358329984,1744938641291,-248.01431448,0.00139625,120]
[358329985,1744938641301,-500.0,0.00139625,2]
[358329986,1744938641310,-500.0,0.00139625,120]
[358329987,1744938641319,-764.03959044,0.00139626,110]
[358329988,1744938641329,-32030.7095,0.00139626,31]
[358329989,1744938641339,-46088.88485719,0.00139626,120]
[358329990,1744938641371,-665.2274099,0.00139626,120]
[358329991,1744938641383,-323.37865145,0.00139626,120]
[358329992,1744938641406,-33086.80183316,0.00139626,120]
[358329993,1744938641423,-5378.40000063,0.00139626,120]
[358329994,1744938641532,-19459.5245,0.00121885,120]
[358329995,1744938641542,-3345.30724767,0.00139626,120]
[358329996,1744938641552,-4500.0,0.00139626,120]
[358329997,1744938641563,-11353.4758022,0.00139715,29]
[358329998,1744938641573,-1003.8932,0.00139725,120]
[358329999,1744938641582,-515.83958261,0.00139725,120]
[358330000,1744938641592,-500.0,0.00139725,120]
[358330001,1744938641602,-500.0,0.00139725,120]
[358330002,1744938641612,-577.8255696,0.00139725,120]
[358330003,1744938641622,-500.0,0.00139725,120]
[358330004,1744938641631,-512.69613465,0.00139725,120]
[358330005,1744938641642,-515.9174733,0.00139725,120]
[358330006,1744938641652,-500.0,0.00139725,120]
[358330007,1744938641662,-349.79819192,0.00139725,120]
[358330008,1744938641672,-500.0,0.00139725,120]
[358330009,1744938641683,-500.0,0.00139725,120]
[358330010,1744938641692,-500.0,0.00139725,120]
[358330011,1744938641703,-500.0,0.00139725,120]
[358330012,1744938641712,-500.0,0.00139725,120]
[358330013,1744938641722,-500.0,0.00139725,120]
[358330014,1744938641732,-500.0,0.00139725,120]
[358330015,1744938641741,-500.0,0.00139725,120]
[358330016,1744938641751,-511.22741076,0.00139725,120]
[358330017,1744938641761,-500.0,0.00139725,120]
[358330018,1744938641770,-514.96285997,0.00139725,120]
[358330019,1744938641780,-244.00729794,0.00139725,120]
[358330020,1744938641790,-500.0,0.00139725,120]
[358330021,1744938641800,-500.0,0.00139725,120]
[358330022,1744938641809,-500.0,0.00139725,120]
[358330023,1744938641819,-500.0,0.00139725,120]
[358330024,1744938641829,-250.0,0.00139725,120]
[358330025,1744938641839,-500.0,0.00139725,120]
[358330026,1744938641848,-500.0,0.00139725,120]
[358330027,1744938641859,-536.72414323,0.00139725,120]
[358330028,1744938641869,-203.85643877,0.00139725,7]
[358330029,1744938641878,-500.0,0.00139725,120]
[358330030,1744938641888,-500.0,0.00139725,120]
[358330031,1744938641898,-500.0,0.00139725,120]
[358330032,1744938641907,-500.0,0.00139725,120]
[358330033,1744938641917,-275.62768645,0.00139725,120]
[358330034,1744938641926,-500.0,0.00139725,120]
[358330035,1744938641936,-500.0,0.00139725,120]
[358330036,1744938641946,-228.11197106,0.00139725,120]
[358330037,1744938641957,-541.29529704,0.00139725,120]
[358330038,1744938641967,-172.71816453,0.00139725,120]
[358330039,1744938641976,-501.10837323,0.00139725,120]
[358330040,1744938641986,-500.0,0.00139725,120]
[358330041,1744938641995,-500.0,0.00139725,120]
[358330042,1744938642005,-308.01229418,0.00139725,120]
[358330043,1744938642014,-370.52208604,0.00139725,120]
[358330044,1744938642024,-489.0,0.00139725,120]
[358330045,1744938642034,-500.0,0.00139725,120]
[358330046,1744938642043,-500.0,0.00139725,120]
[358330047,1744938642053,-482.27430223,0.00139725,120]
[358330048,1744938642063,-500.0,0.00139725,120]
[358330049,1744938642076,-500.0,0.00139725,120]
[358330050,1744938642085,-349.93856088,0.00139725,120]
[358330051,1744938642095,-203.94221432,0.00139725,120]
[358330052,1744938642105,-500.0,0.00139725,2]
[358330053,1744938642115,-500.0,0.00139725,120]
[358330054,1744938642125,-506.27655215,0.00139725,120]
[358330055,1744938642135,-500.0,0.00139725,120]
[358330056,1744938642145,-500.0,0.00139725,120]
[358330057,1744938642154,-234.7697221,0.00139725,120]
[358330058,1744938642164,-245.25061611,0.00139725,120]
[358330059,1744938642173,-500.0,0.00139725,120]
[358330060,1744938642182,-500.0,0.00139725,120]
[358330061,1744938642192,-500.0,0.00139725,120]
[358330062,1744938642202,-214.18211955,0.00139725,120]
[358330063,1744938642212,-500.0,0.00139725,120]
[358330064,1744938642222,-500.0,0.00139725,120]
[358330065,1744938642231,-500.0,0.00139725,120]
[358330066,1744938642240,-500.0,0.00139725,120]
[358330067,1744938642250,-500.0,0.00139725,120]
[358330068,1744938642260,-500.0,0.00139725,120]
[358330069,1744938642270,-500.0,0.00139725,120]
[358330070,1744938642279,-523.77,0.00139725,120]
[358330071,1744938642289,-506.21591898,0.00139725,120]
[358330072,1744938642298,-500.0,0.00139725,120]
[358330073,1744938642307,-500.0,0.00139725,120]
[358330074,1744938642317,-289.12663344,0.00139725,120]
[358330075,1744938642327,-509.82259682,0.00139725,120]
[358330076,1744938642336,-500.0,0.00139725,120]
[358330077,1744938642346,-446.27638389,0.00139725,60]
[358330078,1744938642355,-500.0,0.00139725,120]
[358330079,1744938642365,-500.0,0.00139725,120]
[358330080,1744938642374,-272.94395445,0.00139725,120]
[358330081,1744938642384,-500.0,0.00139725,120]
[358330082,1744938642395,-500.0,0.00139725,120]
[358330083,1744938642404,-500.0,0.00139725,120]
[358330084,1744938642414,-238.67354013,0.00139725,120]
[358330085,1744938642424,-388.94210029,0.00139725,120]
[358330087,1744938642433,-514.34316285,0.00139725,120]
[358330089,1744938642443,-500.0,0.00139725,120]
[358330091,1744938642454,-517.17417605,0.00139725,120]
[358330093,1744938642464,-500.0,0.00139725,120]
[358330095,1744938642474,-442.17917256,0.00139725,120]
[358330096,1744938642484,-538.23269335,0.00139725,120]
[358330097,1744938642493,-500.0,0.00139725,120]
[358330098,1744938642503,-500.0,0.00139725,120]
[358330100,1744938642512,-500.0,0.00139725,120]
[358330101,1744938642522,-228.74032668,0.00139725,120]
[358330102,1744938642531,-500.0,0.00139725,120]
[358330103,1744938642541,-393.22722877,0.00139725,120]
[358330104,1744938642550,-500.0,0.00139725,120]
[358330105,1744938642559,-500.0,0.00139725,120]
[358330106,1744938642569,-411.17230505,0.00139725,120]
[358330107,1744938642579,-1500.0,0.00139725,120]
[358330108,1744938642588,-500.0,0.00139725,120]
[358330109,1744938642598,-500.0,0.00139725,120]
[358330110,1744938642607,-500.0,0.00139725,120]
[358330111,1744938642617,-500.0,0.00139725,120]
[358330112,1744938642627,-500.0,0.00139725,120]
[358330113,1744938642637,-500.0,0.00139725,120]
[358330114,1744938642646,-450.75534636,0.00139725,120]
[358330115,1744938642656,-500.0,0.00139725,120]
[358330116,1744938642665,-500.0,0.00139725,120]
[358330117,1744938642675,-430.6195149,0.00139725,120]
[358330118,1744938642685,-177.56952506,0.00139725,120]
[358330119,1744938642695,-500.0,0.00139725,120]
[358330120,1744938642706,-331.77359968,0.00139725,120]
[358330121,1744938642715,-500.0,0.00139725,120]
[358330122,1744938642725,-416.07465805,0.00139725,120]
[358330123,1744938642735,-1266.75,0.00139725,120]
[358330124,1744938642744,-560.51991039,0.00139725,120]
[358330125,1744938642754,-500.0,0.00139725,120]
[358330126,1744938642765,-159.93948169,0.00139725,120]
[358330127,1744938642774,-500.0,0.00139725,120]
[358330128,1744938642784,-500.0,0.00139725,120]
[358330129,1744938642794,-500.0,0.00139725,120]
[358330130,1744938642803,-500.0,0.00139725,120]
[358330131,1744938642813,-292.36980966,0.00139725,120]
[358330132,1744938642823,-500.0,0.00139725,120]
[358330133,1744938642832,-500.0,0.00139725,120]
[358330134,1744938642842,-342.53711599,0.00139725,120]
[358330135,1744938642851,-500.0,0.00139725,120]
[358330136,1744938642862,-506.89869466,0.00139725,120]
[358330137,1744938642872,-500.0,0.00139725,120]
[358330138,1744938642882,-500.0,0.00139725,120]
[358330139,1744938642891,-500.0,0.00139725,120]
[358330140,1744938642902,-504.37481594,0.00139725,120]
[358330141,1744938642911,-500.0,0.00139725,120]
[358330142,1744938642920,-500.0,0.00139725,120]
[358330143,1744938642930,-500.0,0.00139725,120]